Cogmind - Beta 9.6 @@@ ROGUE MODE // 2020.06.13 @ 15:47:32 Player: waldemarne Result: Destroyed by S-10 Pest with Light Assault Rifle Performance ------------- Evolutions (0) 0 Regions Visited (1) 200 Robots Destroyed (8) 40 Value Destroyed (182) 182 Prototype IDs (0) 0 Alien Tech Used (0) 0 Bonus (0) 0 TOTAL SCORE: 422 Bonus ------- None Cogmind --------- Core Integrity 0/250 Matter 421/450 Energy 100/100 System Corruption 0% Temperature Cool (6) Movement Core (600) Ox11 Location -10/Materials Parts ------- > --- POWER (1) -------- (None) > --- PROPULSION (2) --- (None) > --- UTILITY (2) ------ High-capacity Storage Unit Large Matter Pod > --- WEAPON (2) ------- (None) > --- INVENTORY (12) --- Aluminum Leg Aluminum Leg Datajack Peak State ------------ > --- POWER ------------ Ion Engine > --- PROPULSION ------- Light Treads Light Treads > --- UTILITY ---------- Small Storage Unit Large Matter Pod > --- WEAPON ----------- Small Laser Light Assault Rifle > --- INVENTORY -------- Ion Engine Aluminum Leg Aluminum Leg Medium Laser Assault Rifle [Rating: 7] Favorites ----------- Power Ion Engine Engine Ion Engine Propulsion Light Treads Treads Light Treads Leg Aluminum Leg Utility Large Matter Pod Storage Large Matter Pod Weapon Light Assault Rifle Energy Gun Small Laser Ballistic Gun Light Assault Rifle Special Weapon Mining Laser Build | -11 -10 ------- Run | Scr Mat Slots Evolved . | . . Power . | . . Propulsion . | . . Utility . | . . Weapon . | . . Parts Attached 16 | 6 10 Power 2 | 1 1 Engine 2 | 1 1 Core . | . . Reactor . | . . Propulsion 4 | 2 2 Treads 2 | 2 . Leg 2 | . 2 Wheel . | . . Hover . | . . Flight . | . . Utility 3 | 1 2 Device . | . . Storage 3 | 1 2 Processor . | . . Hackware . | . . Protection . | . . Artifact . | . . Weapon 7 | 2 5 Energy Gun 2 | 1 1 Energy Cannon . | . . Ballistic Gun 4 | 1 3 Ballistic Cannon . | . . Launcher . | . . Special Weapon 1 | . 1 Impact Weapon . | . . Slashing Weapon . | . . Piercing Weapon . | . . Special Melee Weapon . | . . Unidentified Prototypes . | . . Parts Lost 8 | . 8 Power 1 | . 1 Propulsion 2 | . 2 Utility . | . . Weapon 5 | . 5 Highest Loss Streak 6 | . 6 Average Slot Usage (%) 92 | . 92 Engine 13 | . 13 Treads 17 | . 17 Leg 9 | . 9 Storage 25 | . 25 Energy Gun 10 | . 10 Ballistic Gun 14 | . 14 Naked Turns . | . . Heaviest Build 43 | 11 43 Greatest Support 40 | 40 40 Greatest Overweight (x) 13 | . 13 Average Overweight (x) 1 | . 1 Largest Inventory Capacity 12 | 6 12 Average Capacity 9 | 5 10 Most Carried 7 | 4 7 Average Carried 4 | 2 4 Final Capacity 12 | 6 12 Final Carried 4 | 4 3 Class Distribution -------------------- 100% | Mutant Dominant Class ---------------- Mutant | -10/Materials Resources | -11 -10 ----------- Run | Scr Mat Matter Collected 501 | 187 314 Remotely . | . . Salvage Created 220 | . 220 Parts 19 | . 19 Haulers Intercepted . | . . Recyclers Shooed . | . . Parts Field Recycled . | . . Retrieved Matter . | . . Parts Self-Destructed . | . . Prevented . | . . Kills | -11 -10 ------- Run | Scr Mat Combat Hostiles Destroyed 7 | . 7 Guns 7 | . 7 Classes Destroyed 3 | . 3 Watcher 1 | . 1 Swarmer 3 | . 3 Grunt 4 | . 4 Best Kill Streak 3 | . 3 Combat Bots Only 3 | . 3 Max Kills in Single Turn 1 | . 1 Gunslinging . | . . Exploded . | . . Melee . | . . Uniques/NPCs Destroyed . | . . Combat | -11 -10 -------- Run | Scr Mat Damage Taken 1041 | . 1041 Core 253 | . 253 Absorbed by Shields . | . . Core Remaining (%) 100 | 100 . Volleys Fired 29 | . 29 Largest 2 | . 2 Hottest 120 | . 120 Shots Fired 52 | . 52 Gun 50 | . 50 Cannon . | . . Launcher . | . . Special 2 | . 2 Kinetic 34 | . 34 Thermal 18 | . 18 Explosive . | . . Electromagnetic . | . . Robot Hit Streak 12 | . 12 Robot Miss Streak 2 | . 2 Penetration Max . | . . Secondary Targets 1 | . 1 Max Gunslinging Chain 1 | . 1 Shots Hit Robots 37 | . 37 Core Hits 16 | . 16 Critical Hits . | . . Critical Kills . | . . Critical Parts Destroyed . | . . Melee Attacks . | . . Impact . | . . Slashing . | . . Piercing . | . . Sneak Attacks . | . . Combat Hostiles . | . . Follow-up Attacks . | . . Damage Inflicted 413 | . 413 Guns 405 | . 405 Cannons . | . . Explosions . | . . Melee . | . . Ramming 8 | . 8 Kinetic 254 | . 254 Thermal 151 | . 151 Explosive . | . . Electromagnetic . | . . Impact . | . . Slashing . | . . Piercing . | . . Highest Corruption . | . . Average Corruption . | . . Corruption Purged . | . . Overload Shots . | . . Overflow Damage . | . . Projectiles . | . . Explosions . | . . Melee . | . . Knockbacks . | . . Impact . | . . Kinetic . | . . Secondary . | . . Self-Inflicted Damage 3 | . 3 Shots . | . . Rammed 3 | . 3 Targets Rammed 3 | . 3 Kicked . | . . Crushed . | . . Highest Temperature 102 | . 102 Average Temperature 28 | . 28 Received Heat Transfer 528 | . 528 Siege Activations . | . . Robots Corrupted . | . . Combat Hostiles . | . . Parts Fried . | . . Impact Corruptions . | . . Robots Melted . | . . Combat Hostiles . | . . Parts Melted 1 | . 1 Heat Transferred 373 | . 373 Parts Sabotaged . | . . Parts Stolen . | . . Parts Stripped . | . . Power Chain Reactions . | . . Missiles Intercepted . | . . Alert | -11 -10 ------- Run | Scr Mat Peak Influence 97 | . 97 Average Influence 37 | . 44 Maximum Alert Level . | . . Low Security (%) 100 | 100 100 Level 1 . | . . Level 2 . | . . Level 3 . | . . Level 4 . | . . Level 5 . | . . High Security . | . . Max Security . | . . Squads Dispatched 3 | . 3 Investigation 1 | . 1 Extermination . | . . Reinforcement 2 | . 2 Assault . | . . Garrison . | . . Intercept . | . . Construction Impeded . | . . Haulers Reinforced . | . . Stealth | -11 -10 --------- Run | Scr Mat Distress Signals 2 | . 2 Communications Jammed . | . . Distress Signals . | . . Times Spotted 20 | . 20 Peak Tracking Total 6 | . 6 Tactical Retreats . | . . Traps | -11 -10 ------- Run | Scr Mat Traps Triggered 1 | . 1 Indirectly . | . . Trap Hack Attempts . | . . Triggered . | . . Disarmed . | . . Reprogrammed . | . . Reused . | . . Traps Extracted . | . . Installed . | . . Triggered . | . . Machines | -11 -10 ---------- Run | Scr Mat Machines Disabled . | . . Max in Single Turn . | . . Machines Sabotaged . | . . Garrisons Compromised . | . . Overloaded Fab Kills . | . . Fab Network Shutdowns . | . . Hacking | -11 -10 --------- Run | Scr Mat Machines Accessed . | . . Terminals . | . . Fabricators . | . . Repair Stations . | . . Recycling Units . | . . Scanalyzers . | . . Garrison Access . | . . Total Hacks . | . . Successful . | . . Failed . | . . Catastrophic . | . . Database Lockouts . | . . Manual . | . . Terminals . | . . Fabricators . | . . Repair Stations . | . . Recycling Units . | . . Scanalyzers . | . . Garrison Access . | . . Terminal Hacks . | . . Fabricator Hacks . | . . Repair Station Hacks . | . . Recycling Unit Hacks . | . . Scanalyzer . | . . Garrison Access Hacks . | . . Unauthorized Hacks . | . . Terminals . | . . Fabricators . | . . Repair Stations . | . . Recycling Units . | . . Scanalyzers . | . . Garrison Access . | . . Data Cores Recovered . | . . Used . | . . Hacking Detections . | . . Full Trace Events . | . . Feedback Events . | . . Feedback Blocked . | . . Robot Schematics Acquired . | . . Robots Built . | . . Matter . | . . Time . | . . Total Robot Build Rating . | . . Part Schematics Acquired . | . . Parts Built . | . . Matter . | . . Time . | . . Total Part Build Rating . | . . Parts Repaired . | . . Time . | . . Parts Recycled . | . . Recycled Matter . | . . Retrieved Matter . | . . Retrieved Components . | . . Parts Scanalyzed . | . . Part Schematics Acquired . | . . Parts Damaged . | . . Bothacking | -11 -10 ------------ Run | Scr Mat Used RIF Installer . | . . Robots Hacked . | . . Non-combat . | . . Combat . | . . Robot Hacks Applied . | . . Relay Couplers Released . | . . Robots Rewired . | . . Allies Hacked . | . . Hacks Repelled . | . . Allies | -11 -10 -------- Run | Scr Mat Total Allies . | . . Largest Group . | . . Highest-Rated Group . | . . Highest-Rated Ally . | . . Total Orders . | . . Ally Attacks . | . . Total Damage . | . . Kills . | . . Allies Corrupted . | . . Allies Melted . | . . Intel | -11 -10 ------- Run | Scr Mat Robot Analysis Total . | . . Derelict Logs Recovered . | . . Drone Launches . | . . Drone Recoveries . | . . Exploration | -11 -10 ------------- Run | Scr Mat Turns Passed 809 | 124 685 Spaces Moved 367 | 85 282 Core 30 | 25 5 Treads 268 | 60 208 Legs 69 | . 69 Wheels . | . . Hover . | . . Flight . | . . Fastest Speed 50 | 50 160 Average Speed 177 | 127 192 Slowest Speed 700 | 160 700 Overloaded Moves . | . . Propulsion Burnouts . | . . Robots Hopped . | . . Cave-ins Triggered . | . . Exploration Rate (%) 25 | 4 47 Regions Visited 1 Branch Regions . Pre-discovered Areas . | . . Known Exits Taken . | . . Unknown Exits Taken 1 | 1 . Scrap Searched . | . . Spaces Dug . | . . Terrain Destroyed 2 | . 2 Melee . | . . Projectile 2 | . 2 AOE . | . . Actions | -11 -10 --------- Run | Scr Mat Total 467 | 101 366 Wait 28 | 1 27 Move 366 | 84 282 Hop . | . . Pick Up 19 | 10 9 Fast Attach . | . . Attach 10 | 6 4 Detach . | . . Swap 6 | . 6 Drop 6 | . 6 Fire 29 | . 29 Melee . | . . Ram 1 | . 1 Kick 2 | . 2 Crush . | . . Escape Stasis . | . . Rewire . | . . Trap . | . . Miscellaneous . | . . Route ------- -11/Scrapyard -10/Materials (discovered 2 exits: [*Min x2]) History --------- Turn | Location | Event 13 | -11/Scrapyard | Discovered new exit (range 16) 125 | -11/Scrapyard | Entered Materials 193 | -10/Materials | Discovered new exit (range 4) 300 | -10/Materials | Build established: Mutant 626 | -10/Materials | Discovered new exit (range 7) 781 | -10/Materials | Core integrity fell below 50% 804 | -10/Materials | Core integrity fell below 20% 810 | -10/Materials | Destroyed by S-10 Pest with Light Assault Rifle Last Messages --------------- 00741_ Mining Laser destroyed. 00745_ U-05 Engineer builds a Wall. 00751_ G-34 Mercenary destroyed. 00751_ Switching to secondary target: G-34 Mercenary. 00758_ Lgt. Assault Rifle destroyed. 00763_ R-06 Scavenger collects Heat Sink. 00766_ Assault Rifle destroyed. 00766_ Slammed into G-47 Trooper. 00766_ Destabilizing: Core damaged (-12). 00766_ R-06 Scavenger collects Sml. Laser. 00774_ Aluminum Leg destroyed. 00775_ R-06 Scavenger collects Aluminum Leg. 00776_ R-06 Scavenger destroyed. 00776_ R-06 Scavenger collects Tractor Beam. 00778_ Broken Aluminum Leg destroyed. 00779_ R-06 Scavenger collects Heat Sink. 00782_ R-06 Scavenger destroyed. 00787_ Ion Engine destroyed. 00800_ Slammed into G-34 Mercenary. 00807_ S-10 Pest destroyed. Map ----- +----------------------------------------------------+ | ???????????????????????????# ## # | | ???????????????????????????# ## # | | ???????????????????????????# ###+## | | ???????????????????######### | | ?????????????????# """ """ # | | ?????????????????# """ """ # % | | ?????????????????# """ """ # ### | | ?????????????????# # ##+### | | ?????????????????# # # # | | ?????????????????# = # # # | | ?????????????????# =%/ # # | | ?????????????????# %# # # | | ?????????????????########### # # | | ?????????????????????####### # # | | ????????????????????? # # | | ????????????????????? # + | | ????????????????????? # # | | ?????????????????????#^ ###### | | ????????????????????## """ #?#" | | ???????????????????#"" """ #?#"" | | ????????????????????"T """ #?#!! | | ????????????????????"" #?#"" < | | ?????????????????????# ^ #?#| | | ?????????????????????#^ """ #?#"" | | ????????????########## """ #?#" | | ????????????# g@g =%[# """ #?#### | | ????????????# """%s!*# ###### | | ????????????# """g!%%# | | ????????????# """s*! t ! | | ????????????# # | | ????????????#"" # #######+##### | | ????????????#"T #######????? ????? | | ????????????#"" #?????????? ?????? | | ????????????# #????????? ?????? | | ????????????##########????????# ??????? | | ??????????????????????????????# ???????? | | ??????????????????????????????#*???????? | | ??????????????????????????????#????????? | | ???????????????????????????????????????? | | ???????????????????????????????????????? | | ???????????????????????????????????????? | | ???????????????????????????????????????? | | ???????????????????????????????????????? | | ???????????????????????????????????????? | | ???????????????????????????????????????? | | ???????????????????????????????????????? | | ???????????????????????????????????????? | | ???????????????????????????????????????? | | ???????????????????????????????????????? | | ???????????????????????????????????????? | +----------------------------------------------------+ Best States ------------- Heat Dissipation 25 Energy Generation 10 Energy Capacity 250 Matter Stores 450 Matter Capacity 450 Sight Range 16 Terrain Scan Density 10 Evasion (%) 50 Recoil Reduction 2 Item Schematics ----------------- None Robot Schematics ------------------ None Fabricated ------------ Nothing Alien Tech Used ----------------- None Achievements -------------- None Challenges ------------ None Game ------ Seed GatlingFlyingExoskeleton Manual? 0 Play Time 00:13:25 Cumulative 15.1 hours Start 2020.06.13 @ 15:31:01 End 2020.06.13 @ 15:47:32 Sessions 1 Manual Loads 0 Difficulty Rogue Special Mode None Game No. 20 Rogue 20 Adventurer 0 Explorer 0 Win Type - Total 0 Types 0/0/0/0/0/0/0 Lore% 4 Gallery% 17 Achievement% 11 Wizard Run 0 Options --------- ASCII 0 Keyboard 0 Movement Numpad Keybinds 0 Fullscreen 1 Font 18/SmallcapsGlow Map View 76x50 Tactical HUD 1 Map Filters NONE Filters NONE Steam 1 RUN: 21e82d3b-cec9-440f-a5ab-a7829aacbb76